﻿Departmental Area,Entity,Payment Date,Expense Type,Expense Area,Supplier Name,Payment Reference, Invoice Distribution Amount ,Description,Supplier Type,Expenditure Type
UK Statistics Authority,Office for National Statistics,02-Dec-19,Other Goods And Services,Overseas Development,Foreign & Commonwealth Office,164258," 96,036.47 ", Overseas Staff Services,Large,Programme Expenditure
UK Statistics Authority,Office for National Statistics,02-Dec-19,Telecoms,IT Operations,BT Global Services,164262," 49,780.39 ", Cloud Services,Large,Programme Expenditure
UK Statistics Authority,Office for National Statistics,02-Dec-19,"ICT Outsourcing, Maintenance And Support",IT Operations,Equiniti Limited,164263," 47,212.80 ", BT Cloud Services,Large,Programme Expenditure
UK Statistics Authority,Office for National Statistics,02-Dec-19,End User Software And Hardware,IT Operations,Phoenix Software Ltd,164264," 1,534,935.11 ", Information Management Services,SME,Programme Expenditure
UK Statistics Authority,Office for National Statistics,02-Dec-19,Exp - Purchase Of Goods/Services - Contractors,Testing,Methods Business & Digital Technology Ltd,164266," 15,750.00 ", Software Licenses,Large,Programme Expenditure
UK Statistics Authority,Office for National Statistics,02-Dec-19,Exp - Purchase Of Goods/Services - IT Contractual Services,DST Reapportioning,Methods Business & Digital Technology Ltd,164266," 119,064.00 ", Information Management Services,Large,Programme Expenditure
UK Statistics Authority,Office for National Statistics,02-Dec-19,Exp - Purchase Of Goods/Services - IT Contractual Services,DST Reapportioning,QA Ltd,164268," 152,808.00 ", Information Management Services,Large,Programme Expenditure
UK Statistics Authority,Office for National Statistics,02-Dec-19,Exp - Short-Term Contract & Agency Staff - Full Cost,Census White Paper,Parity Resources Limited,164272," 3,227.39 ", Census Information Management Services,Large,Programme Expenditure
UK Statistics Authority,Office for National Statistics,02-Dec-19,Exp - Short-Term Contract & Agency Staff - Full Cost,Beyond 2021 Research And Design,Parity Resources Limited,164272," 4,859.12 ", Information Management Services,Large,Programme Expenditure
UK Statistics Authority,Office for National Statistics,02-Dec-19,Exp - Purchase Of Goods/Services - Contractors,Business Architecture,Parity Resources Limited,164272," 11,270.28 ", Information Management Services,Large,Programme Expenditure
UK Statistics Authority,Office for National Statistics,02-Dec-19,Exp - Purchase Of Goods/Services - Contractors,Testing,Parity Resources Limited,164272," 14,738.40 ", Information Management Services,Large,Programme Expenditure
UK Statistics Authority,Office for National Statistics,02-Dec-19,Exp - Short-Term Contract & Agency Staff - Full Cost,Census CCS Data Collection,Parity Resources Limited,164272," 1,810.22 ", Census Information Management Services,Large,Programme Expenditure
UK Statistics Authority,Office for National Statistics,02-Dec-19,Exp - Purchase Of Goods/Services - Contractors,Operations,Parity Resources Limited,164272," 10,771.20 ", Information Management Services,Large,Programme Expenditure
UK Statistics Authority,Office for National Statistics,02-Dec-19,Exp - Purchase Of Goods/Services - Contractors,Programme Delivery,Parity Resources Limited,164272," 21,146.40 ", Information Management Services,Large,Programme Expenditure
UK Statistics Authority,Office for National Statistics,02-Dec-19,Exp - Purchase Of Goods/Services - Contractors,International Trade And Transactions,Parity Resources Limited,164272, 983.46 , Information Management Services,Large,Programme Expenditure
UK Statistics Authority,Office for National Statistics,02-Dec-19,Exp - Short-Term Contract & Agency Staff - Full Cost,Strategy And Engagement,Parity Resources Limited,164272, 983.46 , Information Management Services,Large,Programme Expenditure
UK Statistics Authority,Office for National Statistics,02-Dec-19,Exp - Short-Term Contract & Agency Staff - Full Cost,ASK Business Services,Parity Resources Limited,164272, 630.05 , Information Management Services,Large,Programme Expenditure
UK Statistics Authority,Office for National Statistics,02-Dec-19,Exp - Purchase Of Goods/Services - Contractors,Security Advisory,Parity Resources Limited,164272," 14,353.92 ", Information Management Services,Large,Programme Expenditure
UK Statistics Authority,Office for National Statistics,02-Dec-19,Exp - Purchase Of Goods/Services - Contractors,Security Advisory,Parity Resources Limited,164272," 15,379.20 ", Information Management Services,Large,Programme Expenditure
UK Statistics Authority,Office for National Statistics,02-Dec-19,Exp - Purchase Of Goods/Services - Contractors,Tech Delivery Legacy SP,Parity Resources Limited,164272," 6,343.92 ", Information Management Services,Large,Programme Expenditure
UK Statistics Authority,Office for National Statistics,02-Dec-19,Exp - Purchase Of Goods/Services - Contractors,IT Applications,Parity Resources Limited,164272," 39,281.16 ", Information Management Services,Large,Programme Expenditure
UK Statistics Authority,Office for National Statistics,02-Dec-19,Exp - Short-Term Contract & Agency Staff - Full Cost,Office Of Chief Data And Information,Parity Resources Limited,164272," 1,545.12 ", Information Management Services,Large,Programme Expenditure
UK Statistics Authority,Office for National Statistics,02-Dec-19,Exp - Short-Term Contract & Agency Staff - Full Cost,Digital Delivery,Parity Resources Limited,164272, 521.70 , Information Management Services,Large,Programme Expenditure
UK Statistics Authority,Office for National Statistics,02-Dec-19,Exp - Short-Term Contract & Agency Staff - Full Cost,Digital Delivery,Parity Resources Limited,164272, 104.34 , Information Management Services,Large,Programme Expenditure
UK Statistics Authority,Office for National Statistics,02-Dec-19,Exp - Purchase Of Goods/Services - Contractors,Digital Delivery,Parity Resources Limited,164272," 28,069.22 ", Information Management Services,Large,Programme Expenditure
UK Statistics Authority,Office for National Statistics,02-Dec-19,Exp - Purchase Of Goods/Services - Contractors,Digital Delivery,Parity Resources Limited,164272," 14,353.92 ", Information Management Services,Large,Programme Expenditure
UK Statistics Authority,Office for National Statistics,02-Dec-19,Exp - Purchase Of Goods/Services - Contractors,Digital Delivery,Parity Resources Limited,164272," 28,393.92 ", Information Management Services,Large,Programme Expenditure
UK Statistics Authority,Office for National Statistics,02-Dec-19,Exp - Purchase Of Goods/Services - Contractors,Digital Delivery,Parity Resources Limited,164272, 544.68 , Information Management Services,Large,Programme Expenditure
UK Statistics Authority,Office for National Statistics,02-Dec-19,Exp - Purchase Of Goods/Services - Contractors,Digital Delivery,Parity Resources Limited,164272," 9,531.90 ", Information Management Services,Large,Programme Expenditure
UK Statistics Authority,Office for National Statistics,02-Dec-19,Exp - Purchase Of Goods/Services - IT Contractual Services,Digital Delivery,Parity Resources Limited,164272, 576.72 , Information Management Services,Large,Programme Expenditure
UK Statistics Authority,Office for National Statistics,02-Dec-19,Exp - Purchase Of Goods/Services - IT Contractual Services,Digital Delivery,Parity Resources Limited,164272," 10,957.68 ", Information Management Services,Large,Programme Expenditure
UK Statistics Authority,Office for National Statistics,02-Dec-19,Other Goods And Services,Interviewer Management TU,Parity Resources Limited,164272, 267.30 , Information Management Services,Large,Programme Expenditure
UK Statistics Authority,Office for National Statistics,02-Dec-19,Exp - Purchase Of Goods/Services - Contractors,Interviewer Support,Parity Resources Limited,164272," 9,215.47 ", Information Management Services,Large,Programme Expenditure
UK Statistics Authority,Office for National Statistics,02-Dec-19,Exp - Short-Term Contract & Agency Staff - Full Cost,Social Survey Transformation Titchfield,Parity Resources Limited,164272," 7,277.60 ", Information Management Services,Large,Programme Expenditure
UK Statistics Authority,Office for National Statistics,02-Dec-19,Exp - Purchase Of Goods/Services - Contractors,Social Survey Transformation Titchfield,Parity Resources Limited,164272," 11,989.08 ", Information Management Services,Large,Programme Expenditure
UK Statistics Authority,Office for National Statistics,02-Dec-19,Exp - Short-Term Contract & Agency Staff - Full Cost,Labour Market,Parity Resources Limited,164272," 1,295.50 ", Information Management Services,Large,Programme Expenditure
UK Statistics Authority,Office for National Statistics,02-Dec-19,Exp - Short-Term Contract & Agency Staff - Full Cost,Labour Market,Parity Resources Limited,164272, 719.72 , Information Management Services,Large,Programme Expenditure
UK Statistics Authority,Office for National Statistics,02-Dec-19,Exp Non-IT Contractual Payments,Data Collection Service,Leidos Innovations UK Limited,164286," 388,310.90 ", Census Questionaire Management,Large,Programme Expenditure
UK Statistics Authority,Office for National Statistics,03-Dec-19,Exp - Purchase Of Goods/Services - IT Contractual Services,DST Reapportioning,E Synergy Solutions,164606," 77,250.00 ", Information Management Services,SME,Programme Expenditure
UK Statistics Authority,Office for National Statistics,03-Dec-19,Exp - Purchase Of Goods/Services - IT Contractual Services,Tech Delivery Legacy SP,E Synergy Solutions,164606," 115,734.00 ", Information Management Services ,SME,Programme Expenditure
UK Statistics Authority,Office for National Statistics,03-Dec-19,Exp - Purchase Of Goods/Services - IT Contractual Services,Tech Delivery Next Gen IT And Infrastructure,E Synergy Solutions,164606," 55,500.00 ", Information Management Services ,SME,Programme Expenditure
UK Statistics Authority,Office for National Statistics,03-Dec-19,Exp - Purchase Of Goods/Services - Contractor Travel,Tech Delivery Next Gen IT And Infrastructure,E Synergy Solutions,164606, 187.08 , Information Management Services ,SME,Programme Expenditure
UK Statistics Authority,Office for National Statistics,03-Dec-19,Exp - Purchase Of Goods/Services - IT Contractual Services,IT Operations,E Synergy Solutions,164606," 141,444.00 ", Information Management Services ,SME,Programme Expenditure
UK Statistics Authority,Office for National Statistics,03-Dec-19,Exp - Purchase Of Goods/Services - Contractors,Digital Delivery,E Synergy Solutions,164606," 1,128.00 ", Information Management Services ,SME,Programme Expenditure
UK Statistics Authority,Office for National Statistics,03-Dec-19,IT Management And Change,Digital Publishing,Swirrl IT Ltd,164607," 72,865.20 ", Information Management Services ,SME,Programme Expenditure
UK Statistics Authority,Office for National Statistics,03-Dec-19,Surveys,Social Surveys Division,Natcen Social Research,164608," 277,472.27 ", Statistical Services,Large,Programme Expenditure
UK Statistics Authority,Office for National Statistics,03-Dec-19,Exp - Purchase Of Goods/Services - Incentive Payments,Social Surveys Division,Natcen Social Research,164608," 12,206.75 ", Statistical Services,Large,Programme Expenditure
UK Statistics Authority,Office for National Statistics,03-Dec-19,Exp - Short-Term Contract & Agency Staff - Full Cost,Stakeholder Engagement And Comms,LA International,164617," 1,657.01 ", Information Management Services,SME,Programme Expenditure
UK Statistics Authority,Office for National Statistics,03-Dec-19,Exp - Purchase Of Goods/Services - Contractors,Data Architecture,LA International,164617," 2,114.53 ", Information Management Services ,SME,Programme Expenditure
UK Statistics Authority,Office for National Statistics,03-Dec-19,Exp - Purchase Of Goods/Services - Contractors,IT Applications,LA International,164617," 6,728.04 ", Information Management Services ,SME,Programme Expenditure
UK Statistics Authority,Office for National Statistics,03-Dec-19,Exp - Purchase Of Goods/Services - Contractors,Digital Delivery,LA International,164617," 22,683.27 ", Information Management Services ,SME,Programme Expenditure
UK Statistics Authority,Office for National Statistics,03-Dec-19,Exp - Purchase Of Goods/Services - IT Contractual Services,DST Reapportioning,QA Ltd,164620," 140,418.00 ", Information Management Services ,Large,Programme Expenditure
UK Statistics Authority,Office for National Statistics,03-Dec-19,Other Professional Services,Internal Audit,Pricewaterhousecoopers LLP,164621," 38,891.40 ", Information Management Services,Large,Programme Expenditure
UK Statistics Authority,Office for National Statistics,03-Dec-19,Rent Payable,Property Titchfield,Eaton Aerospace Limited,164622," 27,488.40 ", Rental of Titchfield Car Parking Facilitlies ,Large,Programme Expenditure
UK Statistics Authority,Office for National Statistics,03-Dec-19,Other Goods And Services,Stakeholder Engagement And Comms,Four Communications Group Limited,164626," 134,941.66 ", Census Public Relations Services,SME,Programme Expenditure
UK Statistics Authority,Office for National Statistics,03-Dec-19,Rent Payable,Property London,Tandem Property Asset Management LLP (Rent),164635," 202,860.00 ", Drumond Gate Rent,Large,Programme Expenditure
UK Statistics Authority,Office for National Statistics,04-Dec-19,Capital Major Works >25K,Property Services,Vinci Construction UK Limited,165000," 57,076.11 ", Major Works Newport,Large,Programme Expenditure
UK Statistics Authority,Office for National Statistics,04-Dec-19,Major Works Over £25K,Property Christchurch,Vinci Construction UK Limited,165000," 2,802.00 ", Major Works Christchurch,Large,Programme Expenditure
UK Statistics Authority,Office for National Statistics,04-Dec-19,FM Contract Payments,Mitie Payments,Vinci Construction UK Limited,165000," 272,252.56 ", Facility Management Services,Large,Programme Expenditure
UK Statistics Authority,Office for National Statistics,04-Dec-19,Travel And Subsistence,CWT Trainline,Corporate Travel Management ,165006," 78,163.83 ", Corporate Travel Management ,SME,Programme Expenditure
UK Statistics Authority,Office for National Statistics,04-Dec-19,Travel And Subsistence,CWT Trainline,Calder World Of Travel,165007," 41,058.18 ", Corporate Travel Management ,SME,Programme Expenditure
UK Statistics Authority,Office for National Statistics,04-Dec-19,Other Goods And Services,Stakeholder Engagement And Comms,Four Communications Group Limited,165010," 20,403.77 ", Census Public Relations Services,SME,Programme Expenditure
UK Statistics Authority,Office for National Statistics,04-Dec-19,Other Goods And Services,Stakeholder Engagement And Comms,Four Communications Group Limited,165010," 38,058.86 ", Census Public Relations Services,SME,Programme Expenditure
UK Statistics Authority,Office for National Statistics,05-Dec-19,Exp - Purchase Of Goods/Services - Contractors,Stakeholder Engagement And Comms,Parity Resources Limited,165021," 3,088.46 ", Information Management Services,Large,Programme Expenditure
UK Statistics Authority,Office for National Statistics,05-Dec-19,Exp - Purchase Of Goods/Services - Contractors,Census CCS Data Collection,Parity Resources Limited,165021," 24,350.40 ", Census Information Management Services,Large,Programme Expenditure
UK Statistics Authority,Office for National Statistics,05-Dec-19,Exp - Short-Term Contract & Agency Staff - Full Cost,Business Architecture Transformation And Statistical Strategy,Parity Resources Limited,165021," 2,878.88 ", Information Management Services,Large,Programme Expenditure
UK Statistics Authority,Office for National Statistics,05-Dec-19,Exp - Short-Term Contract & Agency Staff - Full Cost,Business Architecture Transformation And Statistical Strategy,Parity Resources Limited,165021," 3,149.74 ", Information Management Services,Large,Programme Expenditure
UK Statistics Authority,Office for National Statistics,05-Dec-19,Exp - Short-Term Contract & Agency Staff - Full Cost,Social Survey Transformation Titchfield,Parity Resources Limited,165021," 3,933.84 ", Information Management Services,Large,Programme Expenditure
UK Statistics Authority,Office for National Statistics,05-Dec-19,Other Goods And Services,Stakeholder Engagement And Comms,Four Communications Group Limited,165026," 27,351.24 ", Census Public Relations Services,SME,Programme Expenditure
UK Statistics Authority,Office for National Statistics,06-Dec-19,Exp - Purchase Of Goods And Services Consultants,Digital Delivery,XMA Limited,165042," 15,386.40 ", Information Management Services,Large,Programme Expenditure
UK Statistics Authority,Office for National Statistics,06-Dec-19,"ICT Outsourcing, Maintenance And Support",Digital Delivery,XMA Limited,165042," 207,090.00 ", Information Management Services,Large,Programme Expenditure
UK Statistics Authority,Office for National Statistics,06-Dec-19,Exp - Short-Term Contract & Agency Staff - Full Cost,Stakeholder Engagement And Comms,LA International,165045," 4,971.03 ", Census Management Information Services,SME,Programme Expenditure
UK Statistics Authority,Office for National Statistics,06-Dec-19,Exp - Purchase Of Goods/Services - Contractors,Testing,LA International,165045," 19,005.72 ", Information Management Services ,SME,Programme Expenditure
UK Statistics Authority,Office for National Statistics,06-Dec-19,Exp - Purchase Of Goods/Services - Contractors,Data Architecture,LA International,165045," 7,176.60 ", Information Management Services ,SME,Programme Expenditure
UK Statistics Authority,Office for National Statistics,06-Dec-19,Exp - Purchase Of Goods/Services - Contractors,Data Architecture,LA International,165045," 14,539.10 ", Information Management Services ,SME,Programme Expenditure
UK Statistics Authority,Office for National Statistics,06-Dec-19,Exp - Purchase Of Goods/Services - Contractors,Tech Delivery SRS,LA International,165045," 7,176.60 ", Information Management Services ,SME,Programme Expenditure
UK Statistics Authority,Office for National Statistics,06-Dec-19,Exp - Purchase Of Goods/Services - Contractors,Tech Delivery Data As A Platform,LA International,165045," 8,254.92 ", Information Management Services ,SME,Programme Expenditure
UK Statistics Authority,Office for National Statistics,06-Dec-19,Exp - Purchase Of Goods/Services - Contractors,IT Applications,LA International,165045," 11,880.37 ", Information Management Services ,SME,Programme Expenditure
UK Statistics Authority,Office for National Statistics,06-Dec-19,Exp - Purchase Of Goods/Services - Contractors,Digital Delivery,LA International,165045," 12,233.25 ", Information Management Services ,SME,Programme Expenditure
UK Statistics Authority,Office for National Statistics,06-Dec-19,Exp - Purchase Of Goods/Services - Contractors,Digital Delivery,LA International,165045," 7,176.67 ", Information Management Services ,SME,Programme Expenditure
UK Statistics Authority,Office for National Statistics,06-Dec-19,Exp - Short-Term Contract & Agency Staff - Full Cost,Census CCS Data Collection,Parity Resources Limited,165046," 2,622.85 ", Census Information Management Services,Large,Programme Expenditure
UK Statistics Authority,Office for National Statistics,06-Dec-19,Exp - Short-Term Contract & Agency Staff - Full Cost,Census CCS Data Collection,Parity Resources Limited,165046, 890.44 , Census Information Management Services,Large,Programme Expenditure
UK Statistics Authority,Office for National Statistics,06-Dec-19,Exp - Purchase Of Goods/Services - Contractors,International Trade And Transactions,Parity Resources Limited,165046, 446.54 , Information Management Services,Large,Programme Expenditure
UK Statistics Authority,Office for National Statistics,06-Dec-19,Exp - Short-Term Contract & Agency Staff - Full Cost,Productivity Research And Professional Development,Parity Resources Limited,165046," 2,898.42 ", Information Management Services,Large,Programme Expenditure
UK Statistics Authority,Office for National Statistics,06-Dec-19,Exp - Purchase Of Goods/Services - Contractors,Productivity Research And Professional Development,Parity Resources Limited,165046," 3,600.00 ", Information Management Services,Large,Programme Expenditure
UK Statistics Authority,Office for National Statistics,06-Dec-19,Exp - Short-Term Contract & Agency Staff - Full Cost,Strategy And Engagement,Parity Resources Limited,165046," 2,950.38 ", Information Management Services,Large,Programme Expenditure
UK Statistics Authority,Office for National Statistics,06-Dec-19,Exp - Short-Term Contract & Agency Staff - Full Cost,Business Architecture Transformation And Statistical Strategy,Parity Resources Limited,165046," 2,878.88 ", Information Management Services,Large,Programme Expenditure
UK Statistics Authority,Office for National Statistics,06-Dec-19,Exp - Short-Term Contract & Agency Staff - Full Cost,Business Architecture Transformation And Statistical Strategy,Parity Resources Limited,165046," 3,109.86 ", Information Management Services,Large,Programme Expenditure
UK Statistics Authority,Office for National Statistics,06-Dec-19,Exp - Short-Term Contract & Agency Staff - Full Cost,Business Architecture Transformation And Statistical Strategy,Parity Resources Limited,165046, 823.98 , Information Management Services,Large,Programme Expenditure
UK Statistics Authority,Office for National Statistics,06-Dec-19,Exp - Short-Term Contract & Agency Staff - Full Cost,ASK Business Services,Parity Resources Limited,165046, 140.05 , Information Management Services,Large,Programme Expenditure
UK Statistics Authority,Office for National Statistics,06-Dec-19,Exp - Purchase Of Goods/Services - Contractors,IT Applications,Parity Resources Limited,165046," 6,921.00 ", Information Management Services,Large,Programme Expenditure
UK Statistics Authority,Office for National Statistics,06-Dec-19,Exp - Short-Term Contract & Agency Staff - Full Cost,Office Of Chief Data And Information,Parity Resources Limited,165046," 1,545.12 ", Information Management Services,Large,Programme Expenditure
UK Statistics Authority,Office for National Statistics,06-Dec-19,Exp - Short-Term Contract & Agency Staff - Full Cost,Digital Delivery,Parity Resources Limited,165046, 626.04 , Information Management Services,Large,Programme Expenditure
UK Statistics Authority,Office for National Statistics,06-Dec-19,Other Goods And Services,Interviewer Management TU,Parity Resources Limited,165046, 706.32 , Information Management Services,Large,Programme Expenditure
UK Statistics Authority,Office for National Statistics,06-Dec-19,Exp - Short-Term Contract & Agency Staff - Full Cost,Labour Market,Parity Resources Limited,165046," 1,439.44 ", Information Management Services,Large,Programme Expenditure
UK Statistics Authority,Office for National Statistics,06-Dec-19,Exp - Short-Term Contract & Agency Staff - Full Cost,Labour Market,Parity Resources Limited,165046," 2,159.16 ", Information Management Services,Large,Programme Expenditure
UK Statistics Authority,Office for National Statistics,06-Dec-19,Exp Non-IT Contractual Payments,Census CCS Data Collection,Adecco UK Limited,165050," 2,259,300.00 ", Census People Services ,SME,Programme Expenditure
UK Statistics Authority,Office for National Statistics,06-Dec-19,Surveys,Prices Division,Kantar UK Ltd,165052," 189,089.20 ", Statistical Services,Large,Programme Expenditure
UK Statistics Authority,Office for National Statistics,06-Dec-19,Exp - Purchase Of Goods And Services Consultants,Consultancy Management,Bloom Procurement Services Ltd,165055," 818,371.30 ", Information Management Services,Large,Programme Expenditure
UK Statistics Authority,Office for National Statistics,10-Dec-19,Telecoms,IT Operations,Crown Hosting Data Centres Limited,165553," 2,580.00 ",Crown Hosted Data Center,SME,Programme Expenditure
UK Statistics Authority,Office for National Statistics,10-Dec-19,IT Management And Change,IT Operations,Crown Hosting Data Centres Limited,165553," 87,234.40 ",Crown Hosted Data Center,SME,Programme Expenditure
UK Statistics Authority,Office for National Statistics,10-Dec-19,Other Goods And Services,ASK Business Services,Aviva,165555," 31,119.45 "," People Services, Transfer Undertakings Protection of Employment ",Large,Programme Expenditure
UK Statistics Authority,Office for National Statistics,10-Dec-19,Exp - Purchase Of Goods/Services - IT Contractual Services,DST Reapportioning,Empiric Solutions Limited,165559," 45,240.00 ", Information Management Services,Large,Programme Expenditure
UK Statistics Authority,Office for National Statistics,10-Dec-19,Exp - Purchase Of Goods/Services - Contractors,Gss Strategy Delivery,Concept Information Technology Ltd T/A Concept Resourcing,165560," 4,899.98 ", Information Management Services,Large,Programme Expenditure
UK Statistics Authority,Office for National Statistics,10-Dec-19,Exp - Short-Term Contract & Agency Staff - Full Cost,Beyond 2021 Research And Design,Concept Information Technology Ltd T/A Concept Resourcing,165560," 3,958.70 ", Census Information Management Services,Large,Programme Expenditure
UK Statistics Authority,Office for National Statistics,10-Dec-19,Exp - Short-Term Contract & Agency Staff - Full Cost,Beyond 2021 Research And Design,Concept Information Technology Ltd T/A Concept Resourcing,165560," 3,956.30 ", Census Information Management Services,Large,Programme Expenditure
UK Statistics Authority,Office for National Statistics,10-Dec-19,Exp - Purchase Of Goods/Services - Contractors,Testing,Concept Information Technology Ltd T/A Concept Resourcing,165560," 5,294.16 ", Census Information Management Services,Large,Programme Expenditure
UK Statistics Authority,Office for National Statistics,10-Dec-19,Exp - Short-Term Contract & Agency Staff - Full Cost,Census CCS Data Collection,Concept Information Technology Ltd T/A Concept Resourcing,165560," 5,481.49 ", Census Information Management Services,Large,Programme Expenditure
UK Statistics Authority,Office for National Statistics,10-Dec-19,Exp - Short-Term Contract & Agency Staff - Full Cost,Finance,Concept Information Technology Ltd T/A Concept Resourcing,165560," 2,581.76 ", Census Information Management Services,Large,Programme Expenditure
UK Statistics Authority,Office for National Statistics,10-Dec-19,Exp - Purchase Of Goods/Services - IT Contractual Services,Tech Delivery Legacy SP,Concept Information Technology Ltd T/A Concept Resourcing,165560," 12,900.00 ", Census Information Management Services,Large,Programme Expenditure
UK Statistics Authority,Office for National Statistics,10-Dec-19,Exp - Purchase Of Goods/Services - Contractors,Tech Delivery Data As A Platform,Concept Information Technology Ltd T/A Concept Resourcing,165560," 12,718.75 ", Census Information Management Services,Large,Programme Expenditure
UK Statistics Authority,Office for National Statistics,10-Dec-19,Exp - Short-Term Contract & Agency Staff - Full Cost,Survey Development,Concept Information Technology Ltd T/A Concept Resourcing,165560, 577.73 , Census Information Management Services,Large,Programme Expenditure
UK Statistics Authority,Office for National Statistics,10-Dec-19,Exp - Short-Term Contract & Agency Staff - Full Cost,Interviewer Management TU,Concept Information Technology Ltd T/A Concept Resourcing,165560, 890.52 , Census Information Management Services,Large,Programme Expenditure
UK Statistics Authority,Office for National Statistics,10-Dec-19,Other Goods And Services,Interviewer Management TU,Concept Information Technology Ltd T/A Concept Resourcing,165560, 222.01 , Census Information Management Services,Large,Programme Expenditure
UK Statistics Authority,Office for National Statistics,10-Dec-19,Other Goods And Services,Interviewer Support,Concept Information Technology Ltd T/A Concept Resourcing,165560," 1,551.30 ", Census Information Management Services,Large,Programme Expenditure
UK Statistics Authority,Office for National Statistics,10-Dec-19,Exp - Short-Term Contract & Agency Staff - Full Cost,Social Survey Transformation Newport,Concept Information Technology Ltd T/A Concept Resourcing,165560," 2,450.33 ", Census Information Management Services,Large,Programme Expenditure
UK Statistics Authority,Office for National Statistics,10-Dec-19,Exp - Short-Term Contract & Agency Staff - Full Cost,Prices Division,Concept Information Technology Ltd T/A Concept Resourcing,165560," 3,526.45 ", Census Information Management Services,Large,Programme Expenditure
UK Statistics Authority,Office for National Statistics,10-Dec-19,Exp - Short-Term Contract & Agency Staff - Full Cost,Prices Division,Concept Information Technology Ltd T/A Concept Resourcing,165560," 1,631.94 ", Census Information Management Services,Large,Programme Expenditure
UK Statistics Authority,Office for National Statistics,10-Dec-19,Exp - Short-Term Contract & Agency Staff - Full Cost,Prices Division,Concept Information Technology Ltd T/A Concept Resourcing,165560," 3,760.50 ", Census Information Management Services,Large,Programme Expenditure
UK Statistics Authority,Office for National Statistics,10-Dec-19,Exp - Purchase Of Goods And Services Consultants,Productivity Research And Professional Development,Ipsos Mori,165574," 31,959.60 ", Statistical Services,Large,Programme Expenditure
UK Statistics Authority,Office for National Statistics,10-Dec-19,"ICT Outsourcing, Maintenance And Support",Social Survey Transformation Newport,Ipsos Mori,165574," 46,980.00 ", Statistical Services,Large,Programme Expenditure
UK Statistics Authority,Office for National Statistics,10-Dec-19,Other Goods And Services,Beyond 2021 Research And Design,The Sensible Code Company,165577," 71,626.45 ", Information Management Services,SME,Programme Expenditure
UK Statistics Authority,Office for National Statistics,10-Dec-19,Exp - Purchase Of Goods/Services - Contractors,Testing,Certes Computing Ltd,165578," 10,990.98 ", Information Management Services,SME,Programme Expenditure
UK Statistics Authority,Office for National Statistics,10-Dec-19,Exp - Purchase Of Goods/Services - Contractors,Programme Delivery,Certes Computing Ltd,165578," 14,410.70 ", Information Management Services,SME,Programme Expenditure
UK Statistics Authority,Office for National Statistics,10-Dec-19,Exp - Purchase Of Goods/Services - Contractors,Tech Delivery Legacy SP,Certes Computing Ltd,165578," 27,604.80 ", Information Management Services,SME,Programme Expenditure
UK Statistics Authority,Office for National Statistics,10-Dec-19,Exp - Purchase Of Goods/Services - Contractors,Digital Delivery,Certes Computing Ltd,165578," 8,454.38 ", Information Management Services,SME,Programme Expenditure
UK Statistics Authority,Office for National Statistics,10-Dec-19,Exp - Purchase Of Goods/Services - Contractors,Digital Delivery,Certes Computing Ltd,165578," 16,204.79 ", Information Management Services,SME,Programme Expenditure
UK Statistics Authority,Office for National Statistics,10-Dec-19,Exp - Purchase Of Goods/Services - Contractors,Testing,LA International,165579," 20,069.93 ", Information Management Services,SME,Programme Expenditure
UK Statistics Authority,Office for National Statistics,10-Dec-19,Exp - Purchase Of Goods/Services - Contractors,Data Architecture,LA International,165579," 7,176.60 ", Information Management Services ,SME,Programme Expenditure
UK Statistics Authority,Office for National Statistics,10-Dec-19,Exp - Purchase Of Goods/Services - Contractors,Data Architecture,LA International,165579," 10,829.00 ", Information Management Services ,SME,Programme Expenditure
UK Statistics Authority,Office for National Statistics,10-Dec-19,Exp - Purchase Of Goods/Services - Contractors,Tech Delivery SRS,LA International,165579," 7,176.60 ", Information Management Services ,SME,Programme Expenditure
UK Statistics Authority,Office for National Statistics,10-Dec-19,Exp - Purchase Of Goods/Services - Contractors,Tech Delivery Data As A Platform,LA International,165579," 6,360.78 ", Information Management Services ,SME,Programme Expenditure
UK Statistics Authority,Office for National Statistics,10-Dec-19,Exp - Purchase Of Goods/Services - Contractor Travel,Tech Delivery Data As A Platform,LA International,165579, 86.42 , Information Management Services ,SME,Programme Expenditure
UK Statistics Authority,Office for National Statistics,10-Dec-19,Exp - Short-Term Contract & Agency Staff - Full Cost,Tech Delivery Next Gen IT And Infrastructure,LA International,165579," 1,067.49 ", Information Management Services ,SME,Programme Expenditure
UK Statistics Authority,Office for National Statistics,10-Dec-19,Exp - Purchase Of Goods/Services - Contractors,IT Applications,LA International,165579," 11,880.36 ", Information Management Services ,SME,Programme Expenditure
UK Statistics Authority,Office for National Statistics,10-Dec-19,Exp - Purchase Of Goods/Services - Contractors,Digital Delivery,LA International,165579," 7,689.24 ", Information Management Services ,SME,Programme Expenditure
UK Statistics Authority,Office for National Statistics,10-Dec-19,Exp - Purchase Of Goods/Services - Contractors,Digital Delivery,LA International,165579," 12,174.72 ", Information Management Services ,SME,Programme Expenditure
UK Statistics Authority,Office for National Statistics,10-Dec-19,Exp - Purchase Of Goods/Services - Contractors,Data Capability,Parity Resources Limited,165586," 23,068.80 ", Information Management Services ,Large,Programme Expenditure
UK Statistics Authority,Office for National Statistics,10-Dec-19,Exp - Purchase Of Goods/Services - Contractors,Business Architecture,Parity Resources Limited,165586," 8,298.36 ", Information Management Services,Large,Programme Expenditure
UK Statistics Authority,Office for National Statistics,10-Dec-19,Travel And Subsistence,Business Architecture,Parity Resources Limited,165586, 80.64 , Information Management Services,Large,Programme Expenditure
UK Statistics Authority,Office for National Statistics,10-Dec-19,Exp - Purchase Of Goods/Services - Contractors,Testing,Parity Resources Limited,165586," 16,212.24 ", Information Management Services,Large,Programme Expenditure
UK Statistics Authority,Office for National Statistics,10-Dec-19,Exp - Short-Term Contract & Agency Staff - Full Cost,Census CCS Data Collection,Parity Resources Limited,165586," 1,264.38 ", Census Information Management Services,Large,Programme Expenditure
UK Statistics Authority,Office for National Statistics,10-Dec-19,Exp - Purchase Of Goods/Services - Contractors,Programme Delivery,Parity Resources Limited,165586," 14,802.48 ", Information Management Services,Large,Programme Expenditure
UK Statistics Authority,Office for National Statistics,10-Dec-19,Exp - Purchase Of Goods/Services - Contractors,International Trade And Transactions,Parity Resources Limited,165586," 9,603.84 ", Information Management Services,Large,Programme Expenditure
UK Statistics Authority,Office for National Statistics,10-Dec-19,Exp - Purchase Of Goods/Services - Contractors,International Trade And Transactions,Parity Resources Limited,165586," 1,831.37 ", Information Management Services,Large,Programme Expenditure
UK Statistics Authority,Office for National Statistics,10-Dec-19,Exp - Short-Term Contract & Agency Staff - Full Cost,Productivity Research And Professional Development,Parity Resources Limited,165586, 966.14 , Information Management Services,Large,Programme Expenditure
UK Statistics Authority,Office for National Statistics,10-Dec-19,Exp - Short-Term Contract & Agency Staff - Full Cost,Strategy And Engagement,Parity Resources Limited,165586, 983.46 , Information Management Services,Large,Programme Expenditure
UK Statistics Authority,Office for National Statistics,10-Dec-19,Exp - Purchase Of Goods/Services - Contractors,Security Advisory,Parity Resources Limited,165586," 17,942.40 ", Information Management Services,Large,Programme Expenditure
UK Statistics Authority,Office for National Statistics,10-Dec-19,Exp - Purchase Of Goods/Services - Contractors,Security Advisory,Parity Resources Limited,165586," 14,610.24 ", Information Management Services,Large,Programme Expenditure
UK Statistics Authority,Office for National Statistics,10-Dec-19,Exp - Purchase Of Goods/Services - Contractors,Tech Delivery Legacy SP,Parity Resources Limited,165586," 12,111.12 ", Information Management Services,Large,Programme Expenditure
UK Statistics Authority,Office for National Statistics,10-Dec-19,Exp - Purchase Of Goods/Services - Contractors,IT Applications,Parity Resources Limited,165586," 46,394.04 ", Information Management Services,Large,Programme Expenditure
UK Statistics Authority,Office for National Statistics,10-Dec-19,Exp - Short-Term Contract & Agency Staff - Full Cost,Office Of Chief Data And Information,Parity Resources Limited,165586, 772.56 , Information Management Services,Large,Programme Expenditure
UK Statistics Authority,Office for National Statistics,10-Dec-19,Exp - Short-Term Contract & Agency Staff - Full Cost,Digital Delivery,Parity Resources Limited,165586," 1,252.08 ", Information Management Services,Large,Programme Expenditure
UK Statistics Authority,Office for National Statistics,10-Dec-19,Exp - Purchase Of Goods/Services - Contractors,Digital Delivery,Parity Resources Limited,165586," 34,808.26 ", Information Management Services,Large,Programme Expenditure
UK Statistics Authority,Office for National Statistics,10-Dec-19,Exp - Purchase Of Goods/Services - Contractors,Digital Delivery,Parity Resources Limited,165586," 17,942.40 ", Information Management Services,Large,Programme Expenditure
UK Statistics Authority,Office for National Statistics,10-Dec-19,Exp - Purchase Of Goods/Services - Contractors,Digital Delivery,Parity Resources Limited,165586," 21,542.40 ", Information Management Services,Large,Programme Expenditure
UK Statistics Authority,Office for National Statistics,10-Dec-19,Exp - Purchase Of Goods/Services - Contractors,Digital Delivery,Parity Resources Limited,165586," 12,255.30 ", Information Management Services,Large,Programme Expenditure
UK Statistics Authority,Office for National Statistics,10-Dec-19,Exp - Purchase Of Goods/Services - IT Contractual Services,Digital Delivery,Parity Resources Limited,165586," 14,418.00 ", Information Management Services,Large,Programme Expenditure
UK Statistics Authority,Office for National Statistics,10-Dec-19,Exp - Purchase Of Goods/Services - Contractor Travel,Digital Delivery,Parity Resources Limited,165586, 74.86 , Information Management Services,Large,Programme Expenditure
UK Statistics Authority,Office for National Statistics,10-Dec-19,Exp - Purchase Of Goods/Services - Contractor Travel,Digital Delivery,Parity Resources Limited,165586, 106.49 , Information Management Services,Large,Programme Expenditure
UK Statistics Authority,Office for National Statistics,10-Dec-19,Other Goods And Services,Interviewer Management TU,Parity Resources Limited,165586, 270.54 , Information Management Services,Large,Programme Expenditure
UK Statistics Authority,Office for National Statistics,10-Dec-19,Exp - Short-Term Contract & Agency Staff - Full Cost,Labour Market,Parity Resources Limited,165586, 719.72 , Information Management Services,Large,Programme Expenditure
UK Statistics Authority,Office for National Statistics,10-Dec-19,Exp - Short-Term Contract & Agency Staff - Full Cost,Labour Market,Parity Resources Limited,165586, 573.84 , Information Management Services,Large,Programme Expenditure
UK Statistics Authority,Office for National Statistics,10-Dec-19,Other Goods And Services,Survey Design And Assurance,Cabinet Office,165589," 28,789.86 ", Recruitment Services,Large,Programme Expenditure
UK Statistics Authority,Office for National Statistics,10-Dec-19,Training & Development,Office Of Chief Data And Information,Cabinet Office,165589, 390.00 , Recruitment Services,Large,Programme Expenditure
UK Statistics Authority,Office for National Statistics,10-Dec-19,Other Goods And Services,Digital Delivery,Cabinet Office,165589," 28,711.86 ", Recruitment Services,Large,Programme Expenditure
UK Statistics Authority,Office for National Statistics,10-Dec-19,Other Goods And Services,Digital Delivery,Cabinet Office,165589," 56,109.10 ", Recruitment Services,Large,Programme Expenditure
UK Statistics Authority,Office for National Statistics,10-Dec-19,Other Goods And Services,Digital Delivery,Cabinet Office,165589," 28,711.86 ", Recruitment Services,Large,Programme Expenditure
UK Statistics Authority,Office for National Statistics,10-Dec-19,Hosting,IT Operations,Amazon Web Services Inc,165600," 66,718.18 ", Recruitment Services,Large,Programme Expenditure
UK Statistics Authority,Office for National Statistics,10-Dec-19,Exp Non-IT Contractual Payments,Data Collection Service,Leidos Innovations UK Limited,165601," 2,295,417.59 ", Census Questionaire Management,Large,Programme Expenditure
UK Statistics Authority,Office for National Statistics,10-Dec-19,Exp - Purchase Of Goods And Services Consultants,Consultancy Management,Bloom Procurement Services Ltd,165605," 635,066.28 ", Census Procurement Services,Large,Programme Expenditure
UK Statistics Authority,Office for National Statistics,11-Dec-19,Exp - Purchase Of Goods/Services - Contractors,International Trade And Transactions,Mango Solutions,166111," 10,404.00 ", Information Management Services,SME,Programme Expenditure
UK Statistics Authority,Office for National Statistics,11-Dec-19,Exp - Purchase Of Goods/Services - Contractors,International Trade And Transactions,Mango Solutions,166111," 29,055.00 ", Information Management Services,SME,Programme Expenditure
UK Statistics Authority,Office for National Statistics,11-Dec-19,Exp - Short-Term Contract & Agency Staff - Full Cost,Beyond 2021 Research And Design,Concept Information Technology Ltd T/A Concept Resourcing,166115," 7,917.40 ", Information Management Services,Large,Programme Expenditure
UK Statistics Authority,Office for National Statistics,11-Dec-19,Exp - Short-Term Contract & Agency Staff - Full Cost,Beyond 2021 Research And Design,Concept Information Technology Ltd T/A Concept Resourcing,166115," 2,772.97 ", Census Information Management Services,Large,Programme Expenditure
UK Statistics Authority,Office for National Statistics,11-Dec-19,Exp - Short-Term Contract & Agency Staff - Full Cost,Business Change Support,Concept Information Technology Ltd T/A Concept Resourcing,166115," 8,855.70 ", Census Information Management Services,Large,Programme Expenditure
UK Statistics Authority,Office for National Statistics,11-Dec-19,Exp - Short-Term Contract & Agency Staff - Full Cost,Business Change Support,Concept Information Technology Ltd T/A Concept Resourcing,166115," 6,927.73 ", Census Information Management Services,Large,Programme Expenditure
UK Statistics Authority,Office for National Statistics,11-Dec-19,Exp - Short-Term Contract & Agency Staff - Full Cost,Business Change Support,Concept Information Technology Ltd T/A Concept Resourcing,166115," 1,986.58 ", Census Information Management Services,Large,Programme Expenditure
UK Statistics Authority,Office for National Statistics,11-Dec-19,Exp - Short-Term Contract & Agency Staff - Full Cost,Business Change Support,Concept Information Technology Ltd T/A Concept Resourcing,166115," 16,269.18 ", Census Information Management Services,Large,Programme Expenditure
UK Statistics Authority,Office for National Statistics,11-Dec-19,Exp - Purchase Of Goods/Services - Contractors,Business Change Support,Concept Information Technology Ltd T/A Concept Resourcing,166115," 7,850.54 ", Census Information Management Services,Large,Programme Expenditure
UK Statistics Authority,Office for National Statistics,11-Dec-19,Exp - Purchase Of Goods/Services - Contractors,Business Change Support,Concept Information Technology Ltd T/A Concept Resourcing,166115," 2,332.27 ", Census Information Management Services,Large,Programme Expenditure
UK Statistics Authority,Office for National Statistics,11-Dec-19,Exp - Purchase Of Goods/Services - Contractors,Business Change Support,Concept Information Technology Ltd T/A Concept Resourcing,166115," 4,908.27 ", Census Information Management Services,Large,Programme Expenditure
UK Statistics Authority,Office for National Statistics,11-Dec-19,Exp - Short-Term Contract & Agency Staff - Full Cost,International Trade And Transactions,Concept Information Technology Ltd T/A Concept Resourcing,166115," 3,771.47 ", Census Information Management Services,Large,Programme Expenditure
UK Statistics Authority,Office for National Statistics,11-Dec-19,Exp - Short-Term Contract & Agency Staff - Full Cost,International Trade And Transactions,Concept Information Technology Ltd T/A Concept Resourcing,166115," 3,958.70 ", Census Information Management Services,Large,Programme Expenditure
UK Statistics Authority,Office for National Statistics,11-Dec-19,Exp - Purchase Of Goods/Services - Contractors,International Trade And Transactions,Concept Information Technology Ltd T/A Concept Resourcing,166115," 2,775.11 ", Census Information Management Services,Large,Programme Expenditure
UK Statistics Authority,Office for National Statistics,11-Dec-19,Exp - Purchase Of Goods/Services - Contractors,International Trade And Transactions,Concept Information Technology Ltd T/A Concept Resourcing,166115, 809.12 , Census Information Management Services,Large,Programme Expenditure
UK Statistics Authority,Office for National Statistics,11-Dec-19,Exp - Short-Term Contract & Agency Staff - Full Cost,Analysis Microdata And Engagement,Concept Information Technology Ltd T/A Concept Resourcing,166115," 3,541.69 ", Census Information Management Services,Large,Programme Expenditure
UK Statistics Authority,Office for National Statistics,11-Dec-19,Exp - Short-Term Contract & Agency Staff - Full Cost,Business Outputs And Developments,Concept Information Technology Ltd T/A Concept Resourcing,166115," 2,220.08 ", Census Information Management Services,Large,Programme Expenditure
UK Statistics Authority,Office for National Statistics,11-Dec-19,Travel And Subsistence,CWT Trainline,Corporate Travel Management ,166119," 69,554.91 ", Corporate Travel Management ,SME,Programme Expenditure
UK Statistics Authority,Office for National Statistics,11-Dec-19,Other Goods And Services,Policy Secretariat,Cabinet Office,166126," 25,161.21 ", Recruitment Services ,Large,Programme Expenditure
UK Statistics Authority,Office for National Statistics,11-Dec-19,Training & Development,Learning And Capability,Synergy Learning,166131," 30,900.00 ", Training ,Small,Programme Expenditure
UK Statistics Authority,Office for National Statistics,12-Dec-19,Exp - Purchase Of Goods/Services - Incentive Payments,Survey Management,Park Retail Ltd,166138," 8,152.18 ", Survey Incentives,Large,Programme Expenditure
UK Statistics Authority,Office for National Statistics,12-Dec-19,Exp - Purchase Of Goods/Services - Incentive Payments,Survey Management,Park Retail Ltd,166138," 8,656.54 ", Survey Incentives,Large,Programme Expenditure
UK Statistics Authority,Office for National Statistics,12-Dec-19,Exp - Purchase Of Goods/Services - Incentive Payments,Survey Management,Park Retail Ltd,166138," 11,359.66 ", Survey Incentives,Large,Programme Expenditure
UK Statistics Authority,Office for National Statistics,12-Dec-19,Exp - Short-Term Contract & Agency Staff - Full Cost,Business Change Support,Concept Information Technology Ltd T/A Concept Resourcing,166139," 3,958.70 ", Information Management Services,Large,Programme Expenditure
UK Statistics Authority,Office for National Statistics,12-Dec-19,Exp - Short-Term Contract & Agency Staff - Full Cost,Business Change Support,Concept Information Technology Ltd T/A Concept Resourcing,166139," 6,429.36 ", Information Management Services,Large,Programme Expenditure
UK Statistics Authority,Office for National Statistics,12-Dec-19,Exp - Short-Term Contract & Agency Staff - Full Cost,Business Change Support,Concept Information Technology Ltd T/A Concept Resourcing,166139," 5,549.94 ", Information Management Services,Large,Programme Expenditure
UK Statistics Authority,Office for National Statistics,12-Dec-19,Exp - Purchase Of Goods/Services - Contractors,Business Change Support,Concept Information Technology Ltd T/A Concept Resourcing,166139," 3,771.47 ", Information Management Services,Large,Programme Expenditure
UK Statistics Authority,Office for National Statistics,12-Dec-19,Exp - Short-Term Contract & Agency Staff - Full Cost,International Trade And Transactions,Concept Information Technology Ltd T/A Concept Resourcing,166139," 3,958.70 ", Information Management Services,Large,Programme Expenditure
UK Statistics Authority,Office for National Statistics,12-Dec-19,Exp - Short-Term Contract & Agency Staff - Full Cost,International Trade And Transactions,Concept Information Technology Ltd T/A Concept Resourcing,166139," 3,914.04 ", Information Management Services,Large,Programme Expenditure
UK Statistics Authority,Office for National Statistics,12-Dec-19,Exp - Short-Term Contract & Agency Staff - Full Cost,Business Architecture Transformation And Statistical Strategy,Concept Information Technology Ltd T/A Concept Resourcing,166139," 3,778.16 ", Information Management Services,Large,Programme Expenditure
UK Statistics Authority,Office for National Statistics,12-Dec-19,Exp - Short-Term Contract & Agency Staff - Full Cost,Prices Division,Concept Information Technology Ltd T/A Concept Resourcing,166139," 3,557.50 ", Information Management Services,Large,Programme Expenditure
UK Statistics Authority,Office for National Statistics,12-Dec-19,Stationery,Lodgecard,Royal Bank Of Scotland,166147," 7,406.23 ", Multiple Procurement Card Stationery Purchases  ,Large,Programme Expenditure
UK Statistics Authority,Office for National Statistics,12-Dec-19,Other Goods And Services,GPC,Royal Bank Of Scotland,166147," 57,263.60 ", Multiple Procurement Card Purchases  ,Large,Programme Expenditure
UK Statistics Authority,Office for National Statistics,12-Dec-19,Travel And Subsistence,Car Hire,Royal Bank Of Scotland,166147," 57,341.20 ", Multiple Procurement Card Car Hire Purchases  ,Large,Programme Expenditure
UK Statistics Authority,Office for National Statistics,12-Dec-19,Exp - Purchase Of Goods/Services - Contractors,Stakeholder Engagement And Comms,Parity Resources Limited,166148," 3,860.58 ", Information Management Services,Large,Programme Expenditure
UK Statistics Authority,Office for National Statistics,12-Dec-19,Exp - Short-Term Contract & Agency Staff - Full Cost,Census CCS Data Collection,Parity Resources Limited,166148," 1,248.30 ", Census Information Management Services,Large,Programme Expenditure
UK Statistics Authority,Office for National Statistics,12-Dec-19,Exp - Purchase Of Goods/Services - Contractors,Programme Other,Parity Resources Limited,166148, 678.29 , Information Management Services,Large,Programme Expenditure
UK Statistics Authority,Office for National Statistics,12-Dec-19,Exp - Purchase Of Goods/Services - Contractors,Programme Delivery,Parity Resources Limited,166148," 14,097.60 ", Information Management Services,Large,Programme Expenditure
UK Statistics Authority,Office for National Statistics,12-Dec-19,Exp - Short-Term Contract & Agency Staff - Full Cost,Business Architecture Transformation And Statistical Strategy,Parity Resources Limited,166148, 719.72 , Information Management Services,Large,Programme Expenditure
UK Statistics Authority,Office for National Statistics,12-Dec-19,Exp - Short-Term Contract & Agency Staff - Full Cost,Business Architecture Transformation And Statistical Strategy,Parity Resources Limited,166148, 983.46 , Information Management Services,Large,Programme Expenditure
UK Statistics Authority,Office for National Statistics,12-Dec-19,Exp - Purchase Of Goods/Services - Contractors,Hr Business Partners,Parity Resources Limited,166148," 16,800.00 ", Information Management Services,Large,Programme Expenditure
UK Statistics Authority,Office for National Statistics,12-Dec-19,Exp - Short-Term Contract & Agency Staff - Full Cost,Recruitment ,Parity Resources Limited,166148," 5,900.76 ", Information Management Services,Large,Programme Expenditure
UK Statistics Authority,Office for National Statistics,12-Dec-19,Exp - Short-Term Contract & Agency Staff - Full Cost,Recruitment ,Parity Resources Limited,166148," 1,303.30 ", Information Management Services,Large,Programme Expenditure
UK Statistics Authority,Office for National Statistics,12-Dec-19,Exp - Short-Term Contract & Agency Staff - Full Cost,Recruitment ,Parity Resources Limited,166148," 3,215.76 ", Information Management Services,Large,Programme Expenditure
UK Statistics Authority,Office for National Statistics,12-Dec-19,Exp - Purchase Of Goods/Services - Contractors,Interviewer Support,Parity Resources Limited,166148," 11,534.40 ", Information Management Services,Large,Programme Expenditure
UK Statistics Authority,Office for National Statistics,12-Dec-19,Specialist User Software And Hardware,Security Operations,Computacenter (UK) Limited,166157," 82,618.80 ", Software Licenses,Large,Programme Expenditure
UK Statistics Authority,Office for National Statistics,13-Dec-19,Rent Payable,Property London,Tandem Property Asset Management LLP (Rent),166484," 284,004.00 ", Microsoft Azure Subscription,Large,Programme Expenditure
UK Statistics Authority,Office for National Statistics,13-Dec-19,Exp Non-IT Contractual Payments,Data Collection Service,Good Things Foundation,166487," 285,273.12 ", Information Management Services,SME,Programme Expenditure
UK Statistics Authority,Office for National Statistics,16-Dec-19,"ICT Outsourcing, Maintenance And Support",IT Operations,Equiniti Limited,166786," 27,738.67 ", Maintenance and Support,Large,Programme Expenditure
UK Statistics Authority,Office for National Statistics,16-Dec-19,Exp - Purchase Of Goods/Services - IT Contractual Services,Strategy And Architecture,Medley Business Solutions Ltd,166791," 29,669.98 ", Information Management Services,Large,Programme Expenditure
UK Statistics Authority,Office for National Statistics,16-Dec-19,Exp - Purchase Of Goods/Services - Contractor Travel,Strategy And Architecture,Medley Business Solutions Ltd,166791, 605.42 , Information Management Services,Large,Programme Expenditure
UK Statistics Authority,Office for National Statistics,16-Dec-19,Telecoms,IT Operations,Centurylink Communications UK Ltd,166795," 41,627.51 ", Licenses,Large,Programme Expenditure
UK Statistics Authority,Office for National Statistics,16-Dec-19,Exp Non-IT Contractual Payments,Data Collection Service,Serco Ltd,166806," 175,535.71 ", Information Management Services ,Large,Programme Expenditure
UK Statistics Authority,Office for National Statistics,16-Dec-19,"ICT Outsourcing, Maintenance And Support",IT Operations,CTS (Cloud Technology Solutions Ltd),166807," 52,403.68 ", Census Google Cloud Services,Large,Programme Expenditure
UK Statistics Authority,Office for National Statistics,17-Dec-19,Exp - Purchase Of Goods/Services - Contractors,Testing,LA International,166824," 12,213.58 ", Information Management Services ,SME,Programme Expenditure
UK Statistics Authority,Office for National Statistics,17-Dec-19,Exp - Purchase Of Goods/Services - Contractors,Data Architecture,LA International,166824," 3,588.30 ", Information Management Services ,SME,Programme Expenditure
UK Statistics Authority,Office for National Statistics,17-Dec-19,Exp - Purchase Of Goods/Services - Contractors,Data Architecture,LA International,166824," 7,368.84 ", Information Management Services ,SME,Programme Expenditure
UK Statistics Authority,Office for National Statistics,17-Dec-19,Exp - Short-Term Contract & Agency Staff - Full Cost,Tech Delivery Next Gen IT And Infrastructure,LA International,166824, 434.36 , Information Management Services ,SME,Programme Expenditure
UK Statistics Authority,Office for National Statistics,17-Dec-19,Exp - Purchase Of Goods/Services - Contractors,IT Applications,LA International,166824," 8,919.78 ", Information Management Services ,SME,Programme Expenditure
UK Statistics Authority,Office for National Statistics,17-Dec-19,Exp - Purchase Of Goods/Services - Contractors,Digital Delivery,LA International,166824," 3,075.70 ", Information Management Services ,SME,Programme Expenditure
UK Statistics Authority,Office for National Statistics,17-Dec-19,Exp - Purchase Of Goods/Services - Contractors,Digital Delivery,LA International,166824," 4,485.42 ", Information Management Services ,SME,Programme Expenditure
UK Statistics Authority,Office for National Statistics,17-Dec-19,Exp - Purchase Of Goods And Services Consultants,Consultancy Management,Deloitte,166827," 60,000.00 ", Information Management Services ,Large,Programme Expenditure
UK Statistics Authority,Office for National Statistics,17-Dec-19,Exp - Purchase Of Goods/Services - IT Contractual Services,Tech Delivery Next Gen IT And Infrastructure,Cysure Limited,166832," 28,500.00 ", Software Support,SME,Programme Expenditure
UK Statistics Authority,Office for National Statistics,17-Dec-19,Exp - Purchase Of Goods/Services - IT Contractual Services,Tech Delivery Next Gen IT And Infrastructure,Cysure Limited,166832," 3,510.00 ", Software Support,SME,Programme Expenditure
UK Statistics Authority,Office for National Statistics,17-Dec-19,Exp - Purchase Of Goods/Services - Contractor Travel,Tech Delivery Next Gen IT And Infrastructure,Cysure Limited,166832," 2,421.52 ", Software Support,SME,Programme Expenditure
UK Statistics Authority,Office for National Statistics,17-Dec-19,"ICT Outsourcing, Maintenance And Support",IT Applications,Cysure Limited,166832," 111,198.30 ", Software Support,SME,Programme Expenditure
UK Statistics Authority,Office for National Statistics,17-Dec-19,Exp - Purchase Of Goods/Services - IT Contractual Services,IT Applications,Cysure Limited,166832," 32,651.70 ", Software Support,SME,Programme Expenditure
UK Statistics Authority,Office for National Statistics,17-Dec-19,Exp - Purchase Of Goods/Services - Contractor Travel,IT Applications,Cysure Limited,166832," 9,703.32 ", Software Support,SME,Programme Expenditure
UK Statistics Authority,Office for National Statistics,18-Dec-19,Exp - Purchase Of Goods/Services - IT Contractual Services,Digital Publishing,E Synergy Solutions,167247," 10,200.00 ", Information Management Services ,SME,Programme Expenditure
UK Statistics Authority,Office for National Statistics,18-Dec-19,Exp - Purchase Of Goods/Services - IT Contractual Services,DST Reapportioning,E Synergy Solutions,167247," 177,060.00 ", Information Management Services ,SME,Programme Expenditure
UK Statistics Authority,Office for National Statistics,18-Dec-19,Exp - Purchase Of Goods/Services - IT Contractual Services,Tech Delivery Next Gen IT And Infrastructure,E Synergy Solutions,167247," 24,750.00 ", Information Management Services ,SME,Programme Expenditure
UK Statistics Authority,Office for National Statistics,18-Dec-19,FM Contract Payments,Mitie Payments,Vinci Construction UK Limited,167249," 125,024.10 ", Facilities Management Services,Large,Programme Expenditure
UK Statistics Authority,Office for National Statistics,18-Dec-19,Travel And Subsistence,CWT Trainline,Corporate Travel Management ,167256," 48,550.05 ", Corporate Travel Management ,SME,Programme Expenditure
UK Statistics Authority,Office for National Statistics,18-Dec-19,Telecoms,Census CCS Data Collection,CDW Limited,167257," 8,964.00 ", Licenses,Large,Programme Expenditure
UK Statistics Authority,Office for National Statistics,18-Dec-19,Telecoms,IT Operations,CDW Limited,167257," 17,928.00 ", Licenses,Large,Programme Expenditure
UK Statistics Authority,Office for National Statistics,18-Dec-19,Exp - Purchase Of Goods/Services - Contractors,Testing,Certes Computing Ltd,167262," 12,810.00 ", Information Management Services,SME,Programme Expenditure
UK Statistics Authority,Office for National Statistics,18-Dec-19,Exp - Purchase Of Goods/Services - Contractors,International Trade And Transactions,Certes Computing Ltd,167262," 15,468.14 ", Information Management Services,SME,Programme Expenditure
UK Statistics Authority,Office for National Statistics,18-Dec-19,Exp - Purchase Of Goods/Services - Contractors,Tech Delivery Data As A Platform,LA International,167263," 14,353.20 ", Information Management Services,SME,Programme Expenditure
UK Statistics Authority,Office for National Statistics,18-Dec-19,Exp - Purchase Of Goods/Services - Contractors,IT Applications,LA International,167263," 18,800.23 ", Information Management Services ,SME,Programme Expenditure
UK Statistics Authority,Office for National Statistics,18-Dec-19,Exp - Purchase Of Goods/Services - Contractors,Digital Delivery,LA International,167263," 5,541.89 ", Information Management Services ,SME,Programme Expenditure
UK Statistics Authority,Office for National Statistics,18-Dec-19,Exp - Purchase Of Goods/Services - Contractors,Digital Delivery,LA International,167263," 19,223.29 ", Information Management Services ,SME,Programme Expenditure
UK Statistics Authority,Office for National Statistics,18-Dec-19,Exp - Purchase Of Goods/Services - Contractors,Digital Delivery,LA International,167263," 17,941.50 ", Information Management Services ,SME,Programme Expenditure
UK Statistics Authority,Office for National Statistics,18-Dec-19,Exp - Purchase Of Goods/Services - Contractors,Digital Delivery,LA International,167263," 2,870.64 ", Information Management Services ,SME,Programme Expenditure
UK Statistics Authority,Office for National Statistics,18-Dec-19,Exp - Purchase Of Goods/Services - Contractors,Digital Delivery,LA International,167263," 11,482.56 ", Information Management Services ,SME,Programme Expenditure
UK Statistics Authority,Office for National Statistics,18-Dec-19,End User Software And Hardware,IT Operations,Bytes Software Services Ltd,167267," 34,814.78 ", Licences ,Large,Programme Expenditure
UK Statistics Authority,Office for National Statistics,18-Dec-19,Exp - Purchase Of Goods/Services - Contractors,Operations,Parity Resources Limited,167270," 13,464.00 ", Information Management Services,Large,Programme Expenditure
UK Statistics Authority,Office for National Statistics,18-Dec-19,Exp - Purchase Of Goods/Services - Contractors,Business Architecture Transformation And Statistical Strategy,Parity Resources Limited,167270," 19,494.00 ", Information Management Services,Large,Programme Expenditure
UK Statistics Authority,Office for National Statistics,18-Dec-19,Other Goods And Services,Policy Secretariat,Cabinet Office,167272," 25,161.21 ", Recruitment Services ,Large,Programme Expenditure
UK Statistics Authority,Office for National Statistics,18-Dec-19,Exp Non-IT Contractual Payments,Census CCS Data Collection,Adecco UK Limited,167278," 1,775,556.61 ", Census People Services ,SME,Programme Expenditure
UK Statistics Authority,Office for National Statistics,18-Dec-19,End User Software And Hardware,Tech Delivery Next Gen IT And Infrastructure,Actian Europe Limited,167280," 48,114.00 ", Licenses and Support,SME,Programme Expenditure
UK Statistics Authority,Office for National Statistics,18-Dec-19,Surveys,Productivity Research And Professional Development,Belmana,167281," 53,880.00 ", Statistical Services,Small,Programme Expenditure
UK Statistics Authority,Office for National Statistics,19-Dec-19,Surveys,Crime Statistics,Kantar UK Ltd,167295," 463,820.17 ", Statistical Services,Large,Programme Expenditure
UK Statistics Authority,Office for National Statistics,19-Dec-19,Other Goods And Services,Property London,Tandem Property Asset Management LLP - DG Lease Limited Service Charge Account,167297," 57,702.00 ", Drummond Gate Service Charge,Large,Programme Expenditure
UK Statistics Authority,Office for National Statistics,19-Dec-19,Surveys,Social Surveys Division,Natcen Social Research,167301," 330,077.33 ", Statistical Services,Large,Programme Expenditure
UK Statistics Authority,Office for National Statistics,19-Dec-19,Exp - Purchase Of Goods/Services - Incentive Payments,Social Surveys Division,Natcen Social Research,167301," 12,206.75 ", Statistical Services,Large,Programme Expenditure
UK Statistics Authority,Office for National Statistics,19-Dec-19,FM Contract Payments,Mitie Payments,Vinci Construction UK Limited,167302," 366,164.50 ", Facilities Management Services,Large,Programme Expenditure
UK Statistics Authority,Office for National Statistics,19-Dec-19,Exp - Short-Term Contract & Agency Staff - Full Cost,Census CCS Data Collection,Concept Information Technology Ltd T/A Concept Resourcing,167303," 7,870.61 ", Census Information Management Services,Large,Programme Expenditure
UK Statistics Authority,Office for National Statistics,19-Dec-19,Exp - Short-Term Contract & Agency Staff - Full Cost,Business Change Support,Concept Information Technology Ltd T/A Concept Resourcing,167303, 121.20 , Census Information Management Services,Large,Programme Expenditure
UK Statistics Authority,Office for National Statistics,19-Dec-19,Exp - Short-Term Contract & Agency Staff - Full Cost,Business Change Support,Concept Information Technology Ltd T/A Concept Resourcing,167303," 3,957.26 ", Census Information Management Services,Large,Programme Expenditure
UK Statistics Authority,Office for National Statistics,19-Dec-19,Exp - Short-Term Contract & Agency Staff - Full Cost,International Trade And Transactions,Concept Information Technology Ltd T/A Concept Resourcing,167303," 4,442.32 ", Census Information Management Services,Large,Programme Expenditure
UK Statistics Authority,Office for National Statistics,19-Dec-19,Exp - Short-Term Contract & Agency Staff - Full Cost,International Trade And Transactions,Concept Information Technology Ltd T/A Concept Resourcing,167303," 21,965.20 ", Census Information Management Services,Large,Programme Expenditure
UK Statistics Authority,Office for National Statistics,19-Dec-19,Exp - Short-Term Contract & Agency Staff - Full Cost,International Trade And Transactions,Concept Information Technology Ltd T/A Concept Resourcing,167303," 19,098.07 ", Census Information Management Services,Large,Programme Expenditure
UK Statistics Authority,Office for National Statistics,19-Dec-19,Exp - Short-Term Contract & Agency Staff - Full Cost,International Trade And Transactions,Concept Information Technology Ltd T/A Concept Resourcing,167303," 3,958.70 ", Census Information Management Services,Large,Programme Expenditure
UK Statistics Authority,Office for National Statistics,19-Dec-19,Exp - Short-Term Contract & Agency Staff - Full Cost,International Trade And Transactions,Concept Information Technology Ltd T/A Concept Resourcing,167303, 289.69 , Census Information Management Services,Large,Programme Expenditure
UK Statistics Authority,Office for National Statistics,19-Dec-19,Other Goods And Services,Beyond 2021 Research And Design,The Sensible Code Company,167308," 52,784.40 ", Census Information Management Services,SME,Programme Expenditure
UK Statistics Authority,Office for National Statistics,19-Dec-19,Exp - Purchase Of Goods/Services - Contractors,Business Architecture,Certes Computing Ltd,167309," 11,529.00 ", Information Management Services,SME,Programme Expenditure
UK Statistics Authority,Office for National Statistics,19-Dec-19,Exp - Purchase Of Goods/Services - Contractors,International Trade And Transactions,Certes Computing Ltd,167309," 14,448.96 ", Information Management Services,SME,Programme Expenditure
UK Statistics Authority,Office for National Statistics,19-Dec-19,Exp - Purchase Of Goods/Services - Contractors,Strategy And Architecture,Certes Computing Ltd,167309," 16,652.40 ", Information Management Services,SME,Programme Expenditure
UK Statistics Authority,Office for National Statistics,19-Dec-19,Exp - Purchase Of Goods/Services - Contractors,Tech Delivery Legacy SP,Certes Computing Ltd,167309," 16,812.60 ", Information Management Services,SME,Programme Expenditure
UK Statistics Authority,Office for National Statistics,19-Dec-19,Exp - Purchase Of Goods/Services - Contractors,IT Applications,Certes Computing Ltd,167309," 14,091.12 ", Information Management Services,SME,Programme Expenditure
UK Statistics Authority,Office for National Statistics,19-Dec-19,Exp - Short-Term Contract & Agency Staff - Full Cost,Beyond 2021 Research And Design,Parity Resources Limited,167311," 5,351.61 ", Information Management Services,Large,Programme Expenditure
UK Statistics Authority,Office for National Statistics,19-Dec-19,Exp - Purchase Of Goods/Services - Contractors,Business Architecture,Parity Resources Limited,167311," 2,242.80 ", Information Management Services,Large,Programme Expenditure
UK Statistics Authority,Office for National Statistics,19-Dec-19,Exp - Short-Term Contract & Agency Staff - Full Cost,Census CCS Data Collection,Parity Resources Limited,167311, 856.80 , Census Information Management Services,Large,Programme Expenditure
UK Statistics Authority,Office for National Statistics,19-Dec-19,Exp - Short-Term Contract & Agency Staff - Full Cost,International Trade And Transactions,Parity Resources Limited,167311," 12,452.74 ", Information Management Services,Large,Programme Expenditure
UK Statistics Authority,Office for National Statistics,19-Dec-19,Exp - Purchase Of Goods/Services - Contractors,International Trade And Transactions,Parity Resources Limited,167311," 31,228.80 ", Information Management Services,Large,Programme Expenditure
UK Statistics Authority,Office for National Statistics,19-Dec-19,Exp - Purchase Of Goods/Services - Contractors,International Trade And Transactions,Parity Resources Limited,167311," 51,244.20 ", Information Management Services,Large,Programme Expenditure
UK Statistics Authority,Office for National Statistics,19-Dec-19,Exp - Short-Term Contract & Agency Staff - Full Cost,Productivity Research And Professional Development,Parity Resources Limited,167311," 1,749.50 ", Information Management Services,Large,Programme Expenditure
UK Statistics Authority,Office for National Statistics,19-Dec-19,Exp - Short-Term Contract & Agency Staff - Full Cost,Strategy And Engagement,Parity Resources Limited,167311," 1,966.92 ", Information Management Services,Large,Programme Expenditure
UK Statistics Authority,Office for National Statistics,19-Dec-19,Exp - Purchase Of Goods/Services - Contractors,Security Advisory,Parity Resources Limited,167311," 3,844.80 ", Information Management Services,Large,Programme Expenditure
UK Statistics Authority,Office for National Statistics,19-Dec-19,Exp - Purchase Of Goods/Services - Contractors,IT Applications,Parity Resources Limited,167311," 8,202.48 ", Information Management Services,Large,Programme Expenditure
UK Statistics Authority,Office for National Statistics,19-Dec-19,Exp - Short-Term Contract & Agency Staff - Full Cost,Office Of Chief Data And Information,Parity Resources Limited,167311," 1,545.12 ", Information Management Services,Large,Programme Expenditure
UK Statistics Authority,Office for National Statistics,19-Dec-19,Exp - Short-Term Contract & Agency Staff - Full Cost,Digital Delivery,Parity Resources Limited,167311," 1,210.34 ", Information Management Services,Large,Programme Expenditure
UK Statistics Authority,Office for National Statistics,19-Dec-19,Exp - Short-Term Contract & Agency Staff - Full Cost,Interviewer Management TU,Parity Resources Limited,167311," 2,025.00 ", Information Management Services,Large,Programme Expenditure
UK Statistics Authority,Office for National Statistics,23-Dec-19,Telecoms,IT Operations,Crown Hosting Data Centres Limited,167561," 2,580.00 ",Crown Hosted Data Center,SME,Programme Expenditure
UK Statistics Authority,Office for National Statistics,23-Dec-19,IT Management And Change,IT Operations,Crown Hosting Data Centres Limited,167561," 46,493.80 ",Crown Hosted Data Center,SME,Programme Expenditure
UK Statistics Authority,Office for National Statistics,23-Dec-19,Exp - Permanent Uk Staff - Prp Voucher Payments,Ons Corporate Funds,Park Retail Ltd,167564," 17,298.43 ", Love2Shop Employee Performance Reward Payment ,Large,Programme Expenditure
UK Statistics Authority,Office for National Statistics,23-Dec-19,Exp - Purchase Of Goods/Services - Incentive Payments,Survey Management,Park Retail Ltd,167564," 18,691.75 ", Survey Incentives,Large,Programme Expenditure
UK Statistics Authority,Office for National Statistics,23-Dec-19,Exp - Purchase Of Goods/Services - Incentive Payments,Survey Management,Park Retail Ltd,167564," 7,785.74 ", Survey Incentives,Large,Programme Expenditure
UK Statistics Authority,Office for National Statistics,23-Dec-19,Exp - Purchase Of Goods/Services - Incentive Payments,Survey Management,Park Retail Ltd,167564," 2,717.32 ", Survey Incentives,Large,Programme Expenditure
UK Statistics Authority,Office for National Statistics,23-Dec-19,Exp - Purchase Of Goods/Services - Incentive Payments,Survey Management,Park Retail Ltd,167564," 2,485.35 ", Survey Incentives,Large,Programme Expenditure
UK Statistics Authority,Office for National Statistics,23-Dec-19,Exp - Purchase Of Goods/Services - Incentive Payments,Survey Management,Park Retail Ltd,167564," 4,462.58 ", Survey Incentives,Large,Programme Expenditure
UK Statistics Authority,Office for National Statistics,23-Dec-19,Capital Major Works >25K,Property Services,Vinci Construction UK Limited,167566," 57,169.39 ", Major Works Newport,Large,Programme Expenditure
UK Statistics Authority,Office for National Statistics,23-Dec-19,Major Works Over £25K,Property Christchurch,Vinci Construction UK Limited,167566," 2,802.00 ", Major Works Christchurch ,Large,Programme Expenditure
UK Statistics Authority,Office for National Statistics,23-Dec-19,FM Contract Payments,Mitie Payments,Vinci Construction UK Limited,167566," 272,718.95 ", Facility Management Services,Large,Programme Expenditure
UK Statistics Authority,Office for National Statistics,23-Dec-19,Other Goods And Services,Finance,SCC,167570," 66,171.92 ", ERP Licenses,Large,Programme Expenditure
UK Statistics Authority,Office for National Statistics,23-Dec-19,"ICT Outsourcing, Maintenance And Support",IT Operations,SCC,167570," 3,235.60 ", Maintenance and Support,Large,Programme Expenditure
UK Statistics Authority,Office for National Statistics,23-Dec-19,Exp - Purchase Of Goods And Services Consultants,Digital Delivery,XMA Limited,167573," 15,386.40 ", Software Licence and Support,Large,Programme Expenditure
UK Statistics Authority,Office for National Statistics,23-Dec-19,"ICT Outsourcing, Maintenance And Support",Digital Delivery,XMA Limited,167573," 207,090.00 ", Software Licence and Support,Large,Programme Expenditure
UK Statistics Authority,Office for National Statistics,23-Dec-19,Exp - Purchase Of Goods/Services - Contractors,Testing,LA International,167580," 12,918.42 ", Census Management Information Services,SME,Programme Expenditure
UK Statistics Authority,Office for National Statistics,23-Dec-19,Exp - Purchase Of Goods/Services - Contractors,Tech Delivery SRS,LA International,167580," 3,588.30 ", Information Management Services ,SME,Programme Expenditure
UK Statistics Authority,Office for National Statistics,23-Dec-19,Exp - Purchase Of Goods/Services - Contractors,IT Applications,LA International,167580," 2,883.48 ", Information Management Services ,SME,Programme Expenditure
UK Statistics Authority,Office for National Statistics,23-Dec-19,Exp - Purchase Of Goods/Services - Contractors,Digital Delivery,LA International,167580," 3,844.62 ", Information Management Services ,SME,Programme Expenditure
UK Statistics Authority,Office for National Statistics,23-Dec-19,Exp - Purchase Of Goods/Services - Contractors,Digital Delivery,LA International,167580," 10,893.18 ", Information Management Services ,SME,Programme Expenditure
UK Statistics Authority,Office for National Statistics,23-Dec-19,Exp Non-IT Contractual Payments,Data Collection Service,Leidos Innovations UK Limited,167588," 843,721.84 ", Census Questionaire Management,Large,Programme Expenditure
UK Statistics Authority,Office for National Statistics,23-Dec-19,Exp - Purchase Of Goods/Services - Contractors,Testing,Methods Business & Digital Technology Ltd,167591," 17,250.00 ", Information Management Services,Large,Programme Expenditure
UK Statistics Authority,Office for National Statistics,23-Dec-19,Exp - Purchase Of Goods/Services - IT Contractual Services,DST Reapportioning,Methods Business & Digital Technology Ltd,167591," 137,322.00 ", Information Management Services,Large,Programme Expenditure
UK Statistics Authority,Office for National Statistics,23-Dec-19,Exp - Purchase Of Goods/Services - Contractors,Digital Delivery,Methods Business & Digital Technology Ltd,167591," 51,002.47 ", Information Management Services,Large,Programme Expenditure
UK Statistics Authority,Office for National Statistics,12-Dec-19,Training & Development,Office Of Chief Data And Information,Nielsen Norman Group,30001711," 38,025.14 ", Training ,SME,Programme Expenditure
UK Statistics Authority,Office for National Statistics,18-Dec-19,Electricity,Property Newport,EDF Energy,30001721," 33,324.56 ", Electricity Charges Newport,Large,Programme Expenditure
UK Statistics Authority,Office for National Statistics,18-Dec-19,Electricity,Property Titchfield,EDF Energy,30001722," 28,579.13 ", Electricity Charges Titchfield,Large,Programme Expenditure
,,,,,,,  -    ,,,
